{"text_format":"1","workbook":"xlsx","n_sheets":2,"sheets":["Pasiūlymas","Subtiekėjai ir priedai"],"not_rendered":{"charts":0,"images":0,"macros":1,"external_links":0,"defined_names":0,"comments":0,"pivot_tables":0},"unopened":[],"bounds":{"document_bytes":16777216,"sheet_cells":100000,"rows_first":2000,"rows_last":500,"rows_between":2000,"halvings":0,"cell_chars":16384,"cell_head_chars":4096},"cells_cut":0,"cells_raw":0,"read":"whole","date_system":"1900"}

{"sheet":"Pasiūlymas","index":0,"n_rows":245,"n_cols":7,"rows_kept":245,"cut":false,"hidden":false,"merged":[[11,0,11,1],[11,2,11,5],[12,0,12,1],[12,2,12,5],[13,0,13,1],[13,2,13,5],[14,0,14,1],[14,2,14,5],[15,0,15,1],[15,2,15,5],[16,0,16,1],[16,2,16,5],[17,0,17,1],[17,2,17,5],[18,0,18,1],[18,2,18,5],[23,0,23,5],[19,0,19,1],[20,0,20,1],[19,2,19,5],[20,2,20,5],[22,0,22,5],[27,0,27,5],[28,0,28,5],[24,0,24,5],[25,0,25,5],[26,0,26,5]]}
[]
["PIKIMO SĄLYGŲ PRIEDAS \"PASIŪLYMO FORMA\""]
[]
["HEMODIALIZĖS APARATAI IR PRIEMONĖS DIALIZEI"]
[]
["Kam:","LSMU Kauno ligoninė"]
[]
["Data:","2021 08 30"]
["Nr.:"]
["Vieta:","Vilnius"]
[]
["Tiekėjo pavadinimas / Ūkio subjektų grupės nariai:",null,"UAB B.Braun Avitum"]
["Tiekėjo kodas (-ai):",null,"\t300556854"]
["Tiekėjo adresas (-ai):",null,"Miškinių g. 6a, LT-04132 Vilnius, korespondencijos adresas: Viršuliškių skg. 34-1, LT-05132 Vilnius"]
["Tiekėjo PVM mokėtojo kodas(-ai):",null,"\tLT100002499513"]
["Tiekėjo / Ūkio subjektų grupės atsakingo partnerio sąskaitos numeris, banko pavadinimas ir banko kodas (-ai):",null,"A.s. LT452140030000446589\nAB bankas „Luminor“, banko kodas 40100"]
["Asmens atsakingo už pasiūlymą vardas, pavardė:",null,"Vincas Vaitiekūnas"]
["Asmens atsakingo už pasiūlymą telefono numeris, el. pašto adresas:",null,"vincas.vaitiekunas@bbraun.com; +37061557170"]
["Tiekėjo / Ūkio subjektų grupės, laimėjimo atveju, pasirašančio sutartį asmens vardas, pavardė, pareigos:",null,"Generalinė direktorė - Rasas Narkienė"]
["Tiekėjo / Ūkio subjektų grupės, laimėjimo atveju, už sutarties vykdymą atsakingo asmens vardas, pavardė, telefono numeris, elektroninio pašto adresas:",null,"Pardavimų vadybininkas - Vincas Vaitiekūnas; +37061557170; vincas.vaitiekunas@bbraun.com\nLogistikos vadybininkas - Kipras Laurynas; +37065575852;\nkipras.laurynas@bbraun.com"]
["(1) Tiekėjo / Ūkio subjektų grupės narių, (2) ūkio subjektų, kurių pajėgumais remiamasi, ir (3) jei pašalinimo pagrindai taikomi visiems subtiekėjams - subtiekėjų, kolegialaus priežiūros organo (Stebėtojų tarybos) ir (ar) kolegialaus valdymo organo (Valdybos) narių sąrašas (jei sudaryta) ir (ar) asmuo, kuriam suteikti VPĮ 46 str. 2 d. 2 p. numatyti įgaliojimai",null,null,null,null,null,{"$f":"IF((SUMPRODUCT(--(C21=\"\"))>0), \"Privaloma užpildyti, kai taikomi pašalinimo pagrindai\", \"\")","v":"Privaloma užpildyti, kai taikomi pašalinimo pagrindai"}]
[]
["Tiekėjo patvirtinimai:"]
["1. Šiuo pasiūlymu pažymime, kad sutinkame su visomi pirkimo sąlygomis, nustatytomis:"]
["1.1. viešojo pirkimo dokumentuose;"]
["1.2. kituose pirkimo dokumentuose (jų paaiškinimuose, papildymuose)."]
["2. Patvirtiname, kad informacija ir duomenys, pateikti pasiūlyme, yra teisingi ir apima viską, ko reikia tinkamam sutarties įvykdymui"]
["3. Patvirtiname, kad jei pasiūlyme nenurodyti kolegialaus priežiūros/valdymo organų nariai, šie organai juridiniuose asmenyse nėra sudaryti (taikoma, kai pirkimo dokumentuose nustatyti pašalinimo pagrindai)."]
["4. Pasiūlymas galioja iki termino, nustatyto pirkimo dokumentuose, pabaigos."]
[]
[]
["1. DALIS","HEMODIALIZĖS PRIEMONĖS IR JOMS TINKANTYS APARATAI"]
[]
["Tiekėjo pasiūlymas:"]
["Nr.","Pavadinimas","Kiekis","Mato vienetas","Kaina be PVM, Eur","Suma be PVM, Eur"]
["1.","Hemodializės priemonės ir joms tinkantys aparatai"]
["1.1.","Kraujo magistralių, tinkančių siūlomiems aparatams, komplektas",4500,"kompl.",null,{"$f":"IF(ISBLANK(E37),\"\", PRODUCT(C37,E37))","v":""}]
["1.2.","Dializatoriai. Sintetinė membrana , plotas 1,6-1,7,  KUF 20-22",1000,"vnt.",null,""]
["1.3.","Dializatoriai. Sintetinė membrana,plotas 1,8-2,2,  KUF 23-29",3500,"vnt.",null,""]
["1.4.","Sausos sodos kolonėlės tinkančios siūlomiems aparatams",4500,"vnt.",null,""]
["1.5.","Citrinos rūgštis 50%",1000,"L",null,""]
["1.6.","Pirogeninis dializuojančio tirpalo filtras su sintetine membrana, su jungtimis tinkančiomis aparatui",50,"vnt.",null,""]
["1.7.","Priemonėms tinkantys hemodializės aparatai panaudai visam sutarties laikotarpiui (3 metams).",5,"vnt.",null,""]
[null,null,null,null,"Suma be PVM",{"$f":"IF((SUMPRODUCT(--(F37:F43=\"\"))>0), \"\", SUM(F37:F43))","v":""},{"$f":"IF((SUMPRODUCT(--(F37:F43=\"\"))>0), \"Neužpildytos visų objektų kainos\", \"\")","v":"Neužpildytos visų objektų kainos"}]
[null,null,null,null,"PVM suma"]
[null,null,null,null,"Suma su PVM",{"$f":"IF(ISBLANK(F45), \"\", SUM(F44:F45))","v":""}]
[]
[]
[]
["2. DALIS","FISTULINĖS ADATOS"]
[]
["Tiekėjo pasiūlymas:"]
["Nr.","Pavadinimas","Kiekis","Mato vienetas","Kaina be PVM, Eur","Suma be PVM, Eur"]
["2.","Fistulinės adatos"]
["2.1.","Fistulinės adatos arterinės 15G",5000,"vnt.",null,{"$f":"IF(ISBLANK(E55),\"\", PRODUCT(C55,E55))","v":""}]
["2.2.","Fistulinės adatos veninės15G",5000,"vnt.",null,{"$f":"IF(ISBLANK(E56),\"\", PRODUCT(C56,E56))","v":""}]
["2.3.","Fistulinės adatos arterinės 16G",5000,"vnt.",null,{"$f":"IF(ISBLANK(E57),\"\", PRODUCT(C57,E57))","v":""}]
["2.4.","Fistulinės adatos veninės16G",5000,"vnt.",null,{"$f":"IF(ISBLANK(E58),\"\", PRODUCT(C58,E58))","v":""}]
[null,null,null,null,"Suma be PVM",{"$f":"IF((SUMPRODUCT(--(F55:F58=\"\"))>0), \"\", SUM(F55:F58))","v":""},{"$f":"IF((SUMPRODUCT(--(F55:F58=\"\"))>0), \"Neužpildytos visų objektų kainos\", \"\")","v":"Neužpildytos visų objektų kainos"}]
[null,null,null,null,"PVM suma"]
[null,null,null,null,"Suma su PVM",{"$f":"IF(ISBLANK(F60), \"\", SUM(F59:F60))","v":""}]
[]
[]
[]
["3. DALIS","ARTERIO – VENINĖS FISTULĖS KATETERIAI SU ADATA 16G"]
[]
["Tiekėjo pasiūlymas:"]
["Nr.","Pavadinimas","Kiekis","Mato vienetas","Kaina be PVM, Eur","Suma be PVM, Eur"]
["3.","Arterio – veninės fistulės kateteriai su adata 16G"]
["3.1.","Arterio – veninės fistulės kateteriai su adata 16G",4000,"vnt.",null,{"$f":"IF(ISBLANK(E70),\"\", PRODUCT(C70,E70))","v":""}]
[null,null,null,null,"Suma be PVM",{"$f":"IF(F70=\"\",\"\",SUM(F70:F70))","v":""},{"$f":"IF(F70=\"\",\"Neužpildytos visos objektų kainos\",\"\")","v":"Neužpildytos visos objektų kainos"}]
[null,null,null,null,"PVM suma"]
[null,null,null,null,"Suma su PVM",{"$f":"IF(ISBLANK(F72), \"\", SUM(F71:F72))","v":""}]
[]
[]
[]
["4. DALIS","KRAUJO MAGISTRALĖS TINKANČIOS NIKKISO DBB 06-07 APARATAMS"]
[]
["Tiekėjo pasiūlymas:"]
["Nr.","Pavadinimas","Kiekis","Mato vienetas","Kaina be PVM, Eur","Suma be PVM, Eur"]
["4.","Kraujo magistralės tinkančios Nikkiso DBB 06-07 aparatams"]
["4.1.","Kraujo magistralės tinkančios Nikkiso DBB 06-07 aparatams",4500,"kompl.",null,{"$f":"IF(ISBLANK(E82),\"\", PRODUCT(C82,E82))","v":""}]
[null,null,null,null,"Suma be PVM",{"$f":"IF(F82=\"\",\"\",SUM(F82:F82))","v":""},{"$f":"IF(F82=\"\",\"Neužpildytos visos objektų kainos\",\"\")","v":"Neužpildytos visos objektų kainos"}]
[null,null,null,null,"PVM suma"]
[null,null,null,null,"Suma su PVM",{"$f":"IF(ISBLANK(F84), \"\", SUM(F83:F84))","v":""}]
[]
[]
[]
["5. DALIS","APIROGENINIAI FILTRAI TINKANTYS NIKKISO DBB06-07 APARATAMS"]
[]
["Tiekėjo pasiūlymas:"]
["Nr.","Pavadinimas","Kiekis","Mato vienetas","Kaina be PVM, Eur","Suma be PVM, Eur"]
["5.","Apirogeniniai filtrai tinkantys Nikkiso DBB06-07 aparatams"]
["5.1.","Apirogeniniai filtrai tinkantys Nikkiso DBB06-07 aparatams",50,"vnt.",null,{"$f":"IF(ISBLANK(E94),\"\", PRODUCT(C94,E94))","v":""}]
[null,null,null,null,"Suma be PVM",{"$f":"IF(F94=\"\",\"\",SUM(F94:F94))","v":""},{"$f":"IF(F94=\"\",\"Neužpildytos visos objektų kainos\",\"\")","v":"Neužpildytos visos objektų kainos"}]
[null,null,null,null,"PVM suma"]
[null,null,null,null,"Suma su PVM",{"$f":"IF(ISBLANK(F96), \"\", SUM(F95:F96))","v":""}]
[]
[]
[]
["6. DALIS","KONCENENTRATAI BIKARBONATINEI DIALIZEI"]
[]
["Tiekėjo pasiūlymas:"]
["Nr.","Pavadinimas","Kiekis","Mato vienetas","Kaina be PVM, Eur","Suma be PVM, Eur"]
["6.","Koncenentratai bikarbonatinei dializei"]
["6.1.","Rūgštus koncentratas bikarbonatinei dializei K-1,0 mmol/lCa-1,5 mmol/l",200,"L",0.41,{"$f":"IF(ISBLANK(E106),\"\", PRODUCT(C106,E106))","v":82}]
["6.2.","Rūgštus koncentratas bikarbonatinei dializei K-2,0 mmol/lCa-1,5 mmol/l",25000,"L",0.41,{"$f":"IF(ISBLANK(E107),\"\", PRODUCT(C107,E107))","v":10250}]
["6.3.","Rūgštus koncentratas bikarbonatinei dializei K-2,0 mmol/lCa-1,25 mmol/",7000,"L",0.41,{"$f":"IF(ISBLANK(E108),\"\", PRODUCT(C108,E108))","v":2870}]
["6.4.","Rūgštus koncentratas bikarbonatinei dializei K-3,0 mmol/lCa-1,5 mmol/l",8000,"L",0.41,{"$f":"IF(ISBLANK(E109),\"\", PRODUCT(C109,E109))","v":3280}]
["6.5.","Bazinis koncentrato 8,4 % NaHCO3  tirpalas bikarbonatinei dializei",2000,"L",0.41,{"$f":"IF(ISBLANK(E110),\"\", PRODUCT(C110,E110))","v":820}]
[null,null,null,null,"Suma be PVM",{"$f":"IF((SUMPRODUCT(--(F106:F110=\"\"))>0), \"\", SUM(F106:F110))","v":17302},{"$f":"IF((SUMPRODUCT(--(F106:F110=\"\"))>0), \"Neužpildytos visų objektų kainos\", \"\")","v":""}]
[null,null,null,null,"PVM suma",{"$f":"F111*1.05-F111","v":865.10000000000218}]
[null,null,null,null,"Suma su PVM",{"$f":"IF(ISBLANK(F112), \"\", SUM(F111:F112))","v":18167.100000000002}]
[]
[]
[]
["7. DALIS","SAUSOS SODOS KOLONĖLĖS TINKANČIOS SIŪLOMIEMS APARATAMS"]
[]
["Tiekėjo pasiūlymas:"]
["Nr.","Pavadinimas","Kiekis","Mato vienetas","Kaina be PVM, Eur","Suma be PVM, Eur"]
["7.","Sausos sodos kolonėlės tinkančios siūlomiems aparatams"]
["7.1.","Sausos sodos kolonėlės tinkančios siūlomiems aparatams",3000,"vnt.",null,{"$f":"IF(ISBLANK(E122),\"\", PRODUCT(C122,E122))","v":""}]
[null,null,null,null,"Suma be PVM",{"$f":"IF(F122=\"\",\"\",SUM(F122:F122))","v":""},{"$f":"IF(F122=\"\",\"Neužpildytos visos objektų kainos\",\"\")","v":"Neužpildytos visos objektų kainos"}]
[null,null,null,null,"PVM suma"]
[null,null,null,null,"Suma su PVM",{"$f":"IF(ISBLANK(F124), \"\", SUM(F123:F124))","v":""}]
[]
[]
[]
["8. DALIS","DEZINFEKUOJANTIS TIRPALAS"]
[]
["Tiekėjo pasiūlymas:"]
["Nr.","Pavadinimas","Kiekis","Mato vienetas","Kaina be PVM, Eur","Suma be PVM, Eur"]
["8.","Dezinfekuojantis tirpalas"]
["8.1.","Dezinfekuojantis tirpalas, tinkantis Nikkiso DBB06-07  aparatų cheminei dezinfekcijai",150,"L",null,{"$f":"IF(ISBLANK(E134),\"\", PRODUCT(C134,E134))","v":""}]
[null,null,null,null,"Suma be PVM",{"$f":"IF(F134=\"\",\"\",SUM(F134:F134))","v":""},{"$f":"IF(F134=\"\",\"Neužpildytos visos objektų kainos\",\"\")","v":"Neužpildytos visos objektų kainos"}]
[null,null,null,null,"PVM suma"]
[null,null,null,null,"Suma su PVM",{"$f":"IF(ISBLANK(F136), \"\", SUM(F135:F136))","v":""}]
[]
[]
[]
["9. DALIS","RINKINYS CENTRINĖS VENOS KATETERIZAVIMUI HEMODIALIZĖS PROCEDŪRAI ATLIKTI"]
[]
["Tiekėjo pasiūlymas:"]
["Nr.","Pavadinimas","Kiekis","Mato vienetas","Kaina be PVM, Eur","Suma be PVM, Eur"]
["9.","Rinkinys centrinės venos kateterizavimui hemodializės procedūrai atlikti"]
["9.1.","Rinkinys centrinės venos kateterizavimui hemodializės procedūrai atlikti (dvikanalis)",120,"vnt.",null,{"$f":"IF(ISBLANK(E146),\"\", PRODUCT(C146,E146))","v":""}]
[null,null,null,null,"Suma be PVM",{"$f":"IF(F146=\"\",\"\",SUM(F146:F146))","v":""},{"$f":"IF(F146=\"\",\"Neužpildytos visos objektų kainos\",\"\")","v":"Neužpildytos visos objektų kainos"}]
[null,null,null,null,"PVM suma"]
[null,null,null,null,"Suma su PVM",{"$f":"IF(ISBLANK(F148), \"\", SUM(F147:F148))","v":""}]
[]
[]
[]
["10. DALIS","RINKINYS CENTRINĖS VENOS KATETERIZAVIMUI HEMODIALIZĖS PROCEDŪRAI ATLIKTI"]
[]
["Tiekėjo pasiūlymas:"]
["Nr.","Pavadinimas","Kiekis","Mato vienetas","Kaina be PVM, Eur","Suma be PVM, Eur"]
["10.","Rinkinys centrinės venos kateterizavimui hemodializės procedūrai atlikti"]
["10.1.","Rinkinys centrinės venos kateterizavimui hemodializės procedūrai atlikti (trikanalis)",200,"vnt.",29,{"$f":"IF(ISBLANK(E158),\"\", PRODUCT(C158,E158))","v":5800}]
[null,null,null,null,"Suma be PVM",{"$f":"IF(F158=\"\",\"\",SUM(F158:F158))","v":5800},{"$f":"IF(F158=\"\",\"Neužpildytos visos objektų kainos\",\"\")","v":""}]
[null,null,null,null,"PVM suma",{"$f":"F159*1.05-F159","v":290}]
[null,null,null,null,"Suma su PVM",{"$f":"IF(ISBLANK(F160), \"\", SUM(F159:F160))","v":6090}]
[]
[]
[]
["11. DALIS","KAMŠTELIAI INTRAVENINIAM KATETERIUI."]
[]
["Tiekėjo pasiūlymas:"]
["Nr.","Pavadinimas","Kiekis","Mato vienetas","Kaina be PVM, Eur","Suma be PVM, Eur"]
["11.","Kamšteliai intraveniniam kateteriui."]
["11.1.","Kamšteliai intraveniniam kateteriui. Vienkartiniai, sterilūs",3000,"vnt.",null,{"$f":"IF(ISBLANK(E170),\"\", PRODUCT(C170,E170))","v":""}]
[null,null,null,null,"Suma be PVM",{"$f":"IF(F170=\"\",\"\",SUM(F170:F170))","v":""},{"$f":"IF(F170=\"\",\"Neužpildytos visos objektų kainos\",\"\")","v":"Neužpildytos visos objektų kainos"}]
[null,null,null,null,"PVM suma"]
[null,null,null,null,"Suma su PVM",{"$f":"IF(ISBLANK(F172), \"\", SUM(F171:F172))","v":""}]
[]
[]
[]
["12. DALIS","RINKINYS FISTULĖS PUNKCIJAI"]
[]
["Tiekėjo pasiūlymas:"]
["Nr.","Pavadinimas","Kiekis","Mato vienetas","Kaina be PVM, Eur","Suma be PVM, Eur"]
["12.","Rinkinys fistulės punkcijai"]
["12.1.","Rinkinys HD atlikti per arterioveninę jungtį",8000,"kompl.",0.94,{"$f":"IF(ISBLANK(E182),\"\", PRODUCT(C182,E182))","v":7520}]
[null,null,null,null,"Suma be PVM",{"$f":"IF(F182=\"\",\"\",SUM(F182:F182))","v":7520},{"$f":"IF(F182=\"\",\"Neužpildytos visos objektų kainos\",\"\")","v":""}]
[null,null,null,null,"PVM suma",{"$f":"F183*1.05-F183","v":376}]
[null,null,null,null,"Suma su PVM",{"$f":"IF(ISBLANK(F184), \"\", SUM(F183:F184))","v":7896}]
[]
[]
[]
["13. DALIS","RINKINYS HD PAJUNGIMUI IR ATJUNGIMUI PER CENTRINĖS VENOS KATETERĮ"]
[]
["Tiekėjo pasiūlymas:"]
["Nr.","Pavadinimas","Kiekis","Mato vienetas","Kaina be PVM, Eur","Suma be PVM, Eur"]
["13.","Rinkinys HD pajungimui ir atjungimui per centrinės venos kateterį"]
["13.1.","Rinkinys HD pajungimui ir atjungimui per centrinės venos kateterį",3000,"kompl.",1.28,{"$f":"IF(ISBLANK(E194),\"\", PRODUCT(C194,E194))","v":3840}]
[null,null,null,null,"Suma be PVM",{"$f":"IF(F194=\"\",\"\",SUM(F194:F194))","v":3840},{"$f":"IF(F194=\"\",\"Neužpildytos visos objektų kainos\",\"\")","v":""}]
[null,null,null,null,"PVM suma",{"$f":"F195*1.05-F195","v":192}]
[null,null,null,null,"Suma su PVM",{"$f":"IF(ISBLANK(F196), \"\", SUM(F195:F196))","v":4032}]
[]
[]
[]
["14. DALIS","ADHEZYVINIS TVARSTIS-MAIŠELIS"]
[]
["Tiekėjo pasiūlymas:"]
["Nr.","Pavadinimas","Kiekis","Mato vienetas","Kaina be PVM, Eur","Suma be PVM, Eur"]
["14.","Adhezyvinis tvarstis-maišelis"]
["14.1.","Adhezyvinis tvarstis-maišelis",2000,"vnt.",null,{"$f":"IF(ISBLANK(E206),\"\", PRODUCT(C206,E206))","v":""}]
[null,null,null,null,"Suma be PVM",{"$f":"IF(F206=\"\",\"\",SUM(F206:F206))","v":""},{"$f":"IF(F206=\"\",\"Neužpildytos visos objektų kainos\",\"\")","v":"Neužpildytos visos objektų kainos"}]
[null,null,null,null,"PVM suma"]
[null,null,null,null,"Suma su PVM",{"$f":"IF(ISBLANK(F208), \"\", SUM(F207:F208))","v":""}]
[]
[]
[]
["15. DALIS","TVARSTIS IMPREGNUOTAS NACL"]
[]
["Tiekėjo pasiūlymas:"]
["Nr.","Pavadinimas","Kiekis","Mato vienetas","Kaina be PVM, Eur","Suma be PVM, Eur"]
["15.","Tvarstis impregnuotas Nacl"]
["15.1.","Tvarstis impregnuotas Nacl",1000,"vnt.",null,{"$f":"IF(ISBLANK(E218),\"\", PRODUCT(C218,E218))","v":""}]
[null,null,null,null,"Suma be PVM",{"$f":"IF(F218=\"\",\"\",SUM(F218:F218))","v":""},{"$f":"IF(F218=\"\",\"Neužpildytos visos objektų kainos\",\"\")","v":"Neužpildytos visos objektų kainos"}]
[null,null,null,null,"PVM suma"]
[null,null,null,null,"Suma su PVM",{"$f":"IF(ISBLANK(F220), \"\", SUM(F219:F220))","v":""}]
[]
[]
[]
["16. DALIS","DIALIZATORIAI"]
[]
["Tiekėjo pasiūlymas:"]
["Nr.","Pavadinimas","Kiekis","Mato vienetas","Kaina be PVM, Eur","Suma be PVM, Eur"]
["16.","Dializatoriai"]
["16.1.","Dializatoriai . Celiuliozės membrana , plotas 1,7-1,9,KUF 14-17",4000,"vnt.",null,{"$f":"IF(ISBLANK(E230),\"\", PRODUCT(C230,E230))","v":""}]
[null,null,null,null,"Suma be PVM",{"$f":"IF(F230=\"\",\"\",SUM(F230:F230))","v":""},{"$f":"IF(F230=\"\",\"Neužpildytos visos objektų kainos\",\"\")","v":"Neužpildytos visos objektų kainos"}]
[null,null,null,null,"PVM suma"]
[null,null,null,null,"Suma su PVM",{"$f":"IF(ISBLANK(F232), \"\", SUM(F231:F232))","v":""}]
[]
[]
[]
["17. DALIS","DIALIZATORIAI"]
[]
["Tiekėjo pasiūlymas:"]
["Nr.","Pavadinimas","Kiekis","Mato vienetas","Kaina be PVM, Eur","Suma be PVM, Eur"]
["17.","Dializatoriai"]
["17.1.","Dializatoriai. Polisulfono pagrindu membrana,plotas 1,8 -2,1 ,  KUF  70 -115",1000,"vnt.",7,{"$f":"IF(ISBLANK(E242),\"\", PRODUCT(C242,E242))","v":7000}]
[null,null,null,null,"Suma be PVM",{"$f":"IF(F242=\"\",\"\",SUM(F242:F242))","v":7000},{"$f":"IF(F242=\"\",\"Neužpildytos visos objektų kainos\",\"\")","v":""}]
[null,null,null,null,"PVM suma",{"$f":"F243*1.05-F243","v":350}]
[null,null,null,null,"Suma su PVM",{"$f":"IF(ISBLANK(F244), \"\", SUM(F243:F244))","v":7350}]

{"sheet":"Subtiekėjai ir priedai","index":1,"n_rows":100,"n_cols":11,"rows_kept":100,"cut":false,"hidden":false,"merged":[[47,0,47,9],[52,4,52,9],[50,4,50,9],[52,0,52,3],[50,0,50,3],[38,1,38,6],[37,1,37,6],[36,1,36,6],[35,1,35,6],[43,1,43,6],[42,1,42,6],[41,1,41,6],[40,1,40,6],[39,1,39,6],[32,0,32,9],[34,7,34,9],[34,1,34,6],[45,7,45,9],[42,7,42,9],[37,7,37,9],[36,7,36,9],[35,7,35,9],[44,7,44,9],[43,7,43,9],[41,7,41,9],[40,7,40,9],[39,7,39,9],[38,7,38,9],[45,1,45,6],[44,1,44,6],[1,0,2,10],[30,0,30,9],[14,5,14,7],[8,5,8,7],[7,5,7,7],[6,5,6,7],[14,8,14,9],[8,8,8,9],[7,8,7,9],[6,8,6,9],[14,0,14,1],[8,0,8,1],[7,0,7,1],[6,0,6,1],[14,2,14,4],[8,2,8,4],[7,2,7,4],[9,8,9,9],[6,2,6,4],[5,2,5,4],[5,8,5,9],[4,8,4,9],[4,5,4,7],[4,2,4,4],[4,0,4,1],[5,5,5,7],[5,0,5,1],[9,0,9,1],[13,2,13,4],[12,2,12,4],[11,2,11,4],[10,2,10,4],[9,2,9,4],[13,5,13,7],[12,5,12,7],[11,5,11,7],[10,5,10,7],[9,5,9,7],[16,0,16,10],[18,8,18,9],[18,5,18,7],[18,2,18,4],[18,0,18,1],[13,0,13,1],[12,0,12,1],[11,0,11,1],[10,0,10,1],[13,8,13,9],[12,8,12,9],[11,8,11,9],[10,8,10,9],[23,8,23,9],[22,8,22,9],[21,8,21,9],[20,8,20,9],[19,8,19,9],[28,8,28,9],[27,8,27,9],[26,8,26,9],[25,8,25,9],[24,8,24,9],[23,5,23,7],[22,5,22,7],[21,5,21,7],[20,5,20,7],[19,5,19,7],[28,5,28,7],[27,5,27,7],[26,5,26,7],[25,5,25,7],[24,5,24,7],[23,2,23,4],[22,2,22,4],[21,2,21,4],[20,2,20,4],[19,2,19,4],[28,2,28,4],[27,2,27,4],[26,2,26,4],[25,2,25,4],[24,2,24,4],[23,0,23,1],[22,0,22,1],[21,0,21,1],[20,0,20,1],[19,0,19,1],[28,0,28,1],[27,0,27,1],[26,0,26,1],[25,0,25,1],[24,0,24,1]]}
[]
["Ūkio subjektai (įskaitant kvazisubtiekėjus - fiziniai asmenys, kuriuos ketinama įdarbinti pirkimo laimėjimo atveju), kurių pajėgumais tiekėjas remiasi, kad atitiktų keliamus kvalifikacijos reikalavimus:"]
[]
[]
["Pavadinimas*",null,"Kodas, adresas",null,null,"Perduodama veikla",null,null,"Perduodamos veiklos dalis nuo visos pirkimo sutarties (Eur arba %)",null,"Kval. Reikalavimo Nr."]
[]
[]
[]
[]
[]
[]
[]
[]
[]
[]
[]
["Subtiekėjams / subteikėjams / subrangovams numatomos perduoti veiklos (privaloma nurodyti) ir šių ūkio subjektų pavadinimai (jei žinomi):"]
[]
["Pavadinimas",null,"Kodas, adresas",null,null,"Perduodama veikla*",null,null,"Perduodamos veiklos dalis nuo visos pirkimo sutarties (Eur arba %)"]
[]
[]
[]
[]
[]
[]
[]
[]
[]
[]
[]
[]
[]
["Kartu su pasiūlymu pateikiami šie dokumentai:"]
[]
["Nr.","Dokumento  pavadinimas",null,null,null,null,null,"Dokumentas yra konfidencialus? Taip/Ne"]
["1","Jungtinės veiklos kopija (jei taikoma)",null,null,null,null,null,"Ne"]
["2","Europos bendrasis viešųjų pirkimų dokumentas",null,null,null,null,null,"Ne"]
["3","Subtiekimo sutartis, ketinimų protokolas, preliminarios sutartys ar kiti dokumentai, patvirtinantys, kad laimėjus pirkimą tiekėjui bus prieinami kitų ūkio subjektų ištekliai (jei pasitelkiami kvalifikacijos atitikimui)",null,null,null,null,null,"-"]
["4","Prekės pavyzdys",null,null,null,null,null,"Ne"]
["5. ","Katalogas 6 p.d.",null,null,null,null,null,"Taip"]
["6.","Katalogas 10 p.d.",null,null,null,null,null,"Taip"]
["7.","Katalogas 17 p.d.",null,null,null,null,null,"Taip"]
["8.","B.Braun įgaliojimas 2021",null,null,null,null,null,"Ne"]
["9.","Bendras EC sertifikatas priemonėms",null,null,null,null,null,"Ne"]
[]
[]
[]
["Pasiūlyme nurodyta Prekės kaina, išskyrus jos sudedamąsias dalis, subtiekėjai, taip pat kita informacija, kuri teisės aktų nustatyta tvarka turi būti skelbiama arba kitokiu būdu viešai prieinama visuomenei, nėra laikoma konfidencialia informacija. Konfidencialią informaciją sudaro, visų pirma, komercinė (gamybinė) paslaptis ir konfidencialieji pasiūlymų aspektai. Informacija, kurią viešai skelbti įpareigoja Lietuvos Respublikos įstatymai, negali būti tiekėjo nurodoma kaip konfidenciali, todėl, tiekėjui nurodžius tokią informaciją kaip konfidencialią, perkančioji organizacija turi teisę ją skelbti. Jei tiekėjas nenurodo konfidencialios informacijos, laikoma, kad konfidencialios informacijos tiekėjo pasiūlyme nėra. Vadovaujantis Informacijos viešinimo Centrinėje viešųjų pirkimų informacinėje sistemoje tvarkos aprašu, patvirtintu Viešųjų pirkimų tarnybos direktoriaus 2017 m. birželio 19 d. įsakymu Nr. 1S-91 „Dėl Informacijos viešinimo Centrinėje viešųjų pirkimų informacinėje sistemoje tvarkos aprašo patvirtinimo“, perkančioji organizacija laimėjusio dalyvio pasiūlymą, išskyrus informaciją, kurią tiekėjas nurodė kaip konfidencialią, paskelbs CVP IS."]
[]
[]
["Tiekėjo arba jo įgalioto asmens pareigų pavadinimas:",null,null,null,"Generalinė direktorė"]
[]
["Pasirašančio asmens vardas ir pavardė:",null,null,null,"Rasa Narkienė"]
[]
[]
[]
[]
[]
[]
[]
[]
[]
[]
[]
[]
[]
[]
[]
[]
[]
[]
[]
[]
[]
[]
[]
[]
[]
[]
[]
[]
[]
[]
[]
[]
[]
[]
[]
[]
[]
[]
[]
[]
[]
[]
[]
[]
[]
[]
["5437 2021-07-12 10:39:35"]